[Event "10th Uppsala Young Champions 2023"]
[Site "Uppsala"]
[Date "2023.10.31"]
[Round "7.11"]
[White "Muntean, Victor"]
[Black "Frank, Anton"]
[Result "1-0"]
[ECO "C54"]
[WhiteElo "2092"]
[BlackElo "1997"]
[Annotator "RC"]
[PlyCount "137"]
[EventDate "2023.10.27"]
[EventType "swiss"]
[EventCountry "SWE"]
[SourceTitle "playchess.com"]
[Source "ChessBase"]
[SourceQuality "1"]
[TimeControl "5400+30"]

1. e4 {[%emt 0:00:01]} e5 {[%emt 0:00:44]} 2. Nf3 {[%emt 0:00:07]} Nc6 {[%emt 0:00:09]} 3. Bc4 {[%emt 0:00:06]} Bc5 {[%emt 0:00:09]} 4. c3 {[%emt 0:00:05]} Nf6 {[%emt 0:00:08]} 5. d4 {[%emt 0:00:06]} exd4 {[%emt 0:00:14]} 6. cxd4 {[%emt 0:00:04]} Bb4+ {[%emt 0:00:48]} 7. Kf1 {[%emt 0:00:06]} Nxe4 {[%emt 0:01:10]} 8. d5 {[%emt 0:01:13]} Ne7 {[%emt 0:00:10]} 9. Qd4 {[%emt 0:00:43]} Nf6 {[%emt 0:00:14]} 10. a3 {[%emt 0:00:41]} Ba5 {[%emt 0:00:08]} 11. Bg5 {[%emt 0:00:26]} c5 {[%emt 0:00:08]} 12. Qxc5 {[%emt 0:02:32]} d6 {[%emt 0:00:17]} 13. Qd4 {[%emt 0:00:51]} Bb6 {[%emt 0:00:08]} 14. Qd3 {[%emt 0:01:01]} Ng4 {[%emt 0:15:02]} 15. Bh4 {[%emt 0:05:59]} f6 {[%emt 0:01:50]} 16. h3 {[%emt 0:01:47]} Ne5 {[%emt 0:00:09]} 17. Nxe5 {[%emt 0:01:03]} fxe5 {[%emt 0:00:08]} 18. Qf3 {[%emt 0:00:41]} Qd7 {[%emt 0:05:19]} 19. Nc3 {[%emt 0:15:33]} Qf5 {[%emt 0:13:09]} 20. Bb5+ {[%emt 0:02:46]} Bd7 {[%emt 0:13:06]} 21. Bxd7+ {[%emt 0:04:17]} Qxd7 {[%emt 0:02:03]} 22. Ne4 {[%emt 0:02:49]} Ng6 {[%emt 0:12:19]} 23. Bg5 {[%emt 0:03:50]} Rf8 {[%emt 0:02:49]} 24. Qg4 {[%emt 0:01:34]} Nf4 {[%emt 0:20:29]} 25. Rd1 {[%emt 0:09:04]} h6 {[%emt 0:02:54]} 26. Bxf4 {[%emt 0:01:23]} Rxf4 {[%emt 0:00:06]} 27. Qg6+ {[%emt 0:04:34]} Kf8 {[%emt 0:01:43]} 28. Kg1 {[%emt 0:06:41]} Rd8 {[%emt 0:00:54]} 29. Kh2 {[%emt 0:01:29]} Qf5 {[%emt 0:01:04]} 30. Qxf5+ {[%emt 0:00:53]} Rxf5 {[%emt 0:00:01]} 31. Rd2 {[%emt 0:00:43]} Ke7 {[%emt 0:00:11]} 32. Rc1 {[%emt 0:01:05]} Kd7 {[%emt 0:00:33]} 33. Rdc2 {[%emt 0:00:47]} Rdf8 {[%emt 0:01:11]} 34. f3 {[%emt 0:00:17]} h5 {[%emt 0:02:27]} 35. b4 {[%emt 0:01:09]} g5 {[%emt 0:01:28]} 36. a4 {[%emt 0:03:21]} g4 {[%emt 0:00:08]} 37. a5 {[%emt 0:00:10]} Bd8 {[%emt 0:00:04]} 38. a6 {[%emt 0:01:25]} bxa6 {[%emt 0:01:56]} 39. Rc6 {[%emt 0:00:14]} gxf3 {[%emt 0:01:47]} 40. Rxd6+ {[%emt 0:00:10]} Ke7 {[%emt 0:00:07]} 41. Re6+ {[%emt 0:00:32]} Kf7 {[%emt 0:00:38]} 42. Nd6+ {[%emt 0:00:44]} Kg7 {[%emt 0:00:07]} 43. Nxf5+ {[%emt 0:00:13]} Rxf5 {[%emt 0:00:01]} 44. gxf3 {[%emt 0:00:15]} Rxf3 {[%emt 0:00:12]} 45. Rxe5 {[%emt 0:00:50]} h4 {[%emt 0:00:25]} 46. d6 {[%emt 0:06:27]} Rd3 {[%emt 0:00:30]} 47. Re6 {[%emt 0:00:59]} Kf7 {[%emt 0:00:24]} 48. Rce1 {[%emt 0:00:34]} Rd4 {[%emt 0:00:39]} 49. R1e4 {[%emt 0:01:04]} Rxb4 {[%emt 0:00:15]} 50. Rxb4 {[%emt 0:02:43]} Kxe6 {[%emt 0:00:06]} 51. Ra4 {[%emt 0:00:20]} Kxd6 {[%emt 0:00:57]} 52. Rxa6+ {[%emt 0:00:03]} Bb6 {[%emt 0:00:08]} 53. Ra4 {[%emt 0:00:13]} a5 {[%emt 0:01:36]} 54. Rxh4 {[%emt 0:00:09]} Kd5 {[%emt 0:01:06]} 55. Kg2 {[%emt 0:00:42]} Bd4 {[%emt 0:00:27]} 56. Kf3 {[%emt 0:00:12]} a4 {[%emt 0:00:15]} 57. Ke2 {[%emt 0:00:14]} Kc4 {[%emt 0:01:58]} 58. Rh6 {[%emt 0:00:27]} a3 {[%emt 0:00:19]} 59. Ra6 {[%emt 0:00:04]} Kb3 {[%emt 0:00:30]} 60. Kd3 {[%emt 0:00:06]} Bf2 {[%emt 0:01:12]} 61. Ra8 {[%emt 0:01:45]} Kb2 {[%emt 0:00:53]} 62. Rb8+ {[%emt 0:01:24]} Kc1 {[%emt 0:00:06]} 63. Rc8+ {[%emt 0:00:04]} Kb1 {[%emt 0:00:18]} 64. Rf8 {[%emt 0:00:08]} Bg3 {[%emt 0:00:52]} 65. Kc3 {[%emt 0:00:09]} Be5+ {[%emt 0:00:55]} 66. Kb3 {[%emt 0:00:09]} Bb2 {[%emt 0:00:44]} 67. Rf1+ {[%emt 0:00:10]} Bc1 {[%emt 0:00:02]} 68. Rxc1+ {[%emt 0:00:08]} Kxc1 {[%emt 0:00:02]} 69. Kxa3 {[%emt 0:00:06]} 1-0

[Event "10th Uppsala Young Champions 2023"]
[Site "Uppsala"]
[Date "2023.11.01"]
[Round "8.1"]
[White "Falkevall, Axel"]
[Black "Sorensen, Hampus"]
[Result "1/2-1/2"]
[ECO "E01"]
[WhiteElo "2280"]
[BlackElo "2470"]
[Annotator "ChessBase"]
[PlyCount "151"]
[EventDate "2023.10.27"]
[EventType "swiss"]
[EventCountry "SWE"]
[SourceTitle "playchess.com"]
[Source "ChessBase"]
[SourceQuality "1"]
[TimeControl "5400+30"]

1. d4 {[%emt 0:00:06]} Nf6 {[%emt 0:00:17]} 2. c4 {[%emt 0:00:06]} e6 {[%emt 0:00:10]} 3. g3 {[%emt 0:00:06]} d5 {[%emt 0:00:19]} 4. Bg2 {[%emt 0:00:06]} Bb4+ {[%emt 0:00:36]} 5. Nd2 {[%emt 0:00:14]} O-O {[%emt 0:02:13]} 6. Ngf3 {[%emt 0:00:21]} b6 {[%emt 0:00:37]} 7. O-O {[%emt 0:00:19]} a5 {[%emt 0:00:25]} 8. cxd5 {[%emt 0:01:39]} exd5 {[%emt 0:00:23]} 9. a3 {[%emt 0:00:17]} Be7 {[%emt 0:03:13]} 10. Nb1 {[%emt 0:00:44]} Bb7 {[%emt 0:06:36]} 11. Nc3 {[%emt 0:01:23]} Nbd7 {[%emt 0:10:59]} 12. Bf4 {[%emt 0:05:12]} c5 {[%emt 0:06:06]} 13. Rc1 {[%emt 0:09:43]} Rc8 {[%emt 0:04:46]} 14. dxc5 {[%emt 0:05:37]} bxc5 {[%emt 0:10:15]} 15. Ne5 {[%emt 0:08:55]} Nb6 {[%emt 0:00:20]} 16. Na4 {[%emt 0:19:17]} Nxa4 {[%emt 0:08:27]} 17. Qxa4 {[%emt 0:00:06]} Qb6 {[%emt 0:00:41]} 18. Rfd1 {[%emt 0:11:34]} Rfd8 {[%emt 0:05:56]} 19. Qc2 {[%emt 0:02:05]} Ba6 {[%emt 0:03:43]} 20. Bf3 {[%emt 0:04:57]} Qe6 {[%emt 0:03:06]} 21. g4 {[%emt 0:09:05]} Bd6 {[%emt 0:07:05]} 22. Qf5 {[%emt 0:00:50]} Qxf5 {[%emt 0:13:43]} 23. gxf5 {[%emt 0:00:06]} Re8 {[%emt 0:00:14]} 24. Nd3 {[%emt 0:00:44]} Bxf4 {[%emt 0:01:07]} 25. Nxf4 {[%emt 0:00:06]} d4 {[%emt 0:00:01]} 26. b3 {[%emt 0:06:44]} Re5 {[%emt 0:02:44]} 27. Nd3 {[%emt 0:01:50]} Rxf5 {[%emt 0:00:05]} 28. b4 {[%emt 0:00:30]} cxb4 {[%emt 0:00:55]} 29. axb4 {[%emt 0:01:45]} g5 {[%emt 0:01:45]} 30. Rxc8+ {[%emt 0:04:14]} Bxc8 {[%emt 0:00:09]} 31. bxa5 {[%emt 0:00:09]} Rxa5 {[%emt 0:00:26]} 32. Nb4 {[%emt 0:00:38]} g4 {[%emt 0:04:40]} 33. Bc6 {[%emt 0:02:01]} Ba6 {[%emt 0:00:19]} 34. Nxa6 {[%emt 0:03:16]} Rxa6 {[%emt 0:00:01]} 35. Bb5 {[%emt 0:00:14]} Rd6 {[%emt 0:00:46]} 36. Ra1 {[%emt 0:01:14]} Rd5 {[%emt 0:02:33]} 37. Bd3 {[%emt 0:00:37]} h5 {[%emt 0:00:49]} 38. Kg2 {[%emt 0:00:27]} Kg7 {[%emt 0:00:37]} 39. Ra7 {[%emt 0:00:26]} Rd7 {[%emt 0:00:33]} 40. Ra5 {[%emt 0:00:32]} Kh6 {[%emt 0:00:55]} 41. f3 {[%emt 0:01:21]} gxf3+ {[%emt 0:00:48]} 42. Kxf3 {[%emt 0:00:06]} Re7 {[%emt 0:00:40]} 43. Ra4 {[%emt 0:00:48]} Ng4 {[%emt 0:00:56]} 44. h3 {[%emt 0:01:13]} Ne5+ {[%emt 0:00:03]} 45. Kg2 {[%emt 0:00:19]} Nxd3 {[%emt 0:00:56]} 46. exd3 {[%emt 0:00:04]} Re2+ {[%emt 0:00:06]} 47. Kg1 {[%emt 0:00:18]} Re3 {[%emt 0:00:04]} 48. Rxd4 {[%emt 0:00:04]} Rxh3 {[%emt 0:00:09]} 49. Kg2 {[%emt 0:00:19]} Re3 {[%emt 0:00:05]} 50. Rd5 {[%emt 0:00:34]} Kg6 {[%emt 0:00:35]} 51. d4 {[%emt 0:00:37]} Rd3 {[%emt 0:00:38]} 52. Rd8 {[%emt 0:00:35]} Kg5 {[%emt 0:00:32]} 53. d5 {[%emt 0:00:31]} Kg4 {[%emt 0:00:22]} 54. Rg8+ {[%emt 0:00:28]} Kf4 {[%emt 0:00:05]} 55. Rf8 {[%emt 0:00:28]} f5 {[%emt 0:00:07]} 56. Rh8 {[%emt 0:00:19]} Rd2+ {[%emt 0:01:46]} 57. Kh3 {[%emt 0:01:15]} Rxd5 {[%emt 0:00:53]} 58. Rxh5 {[%emt 0:00:15]} Kf3 {[%emt 0:01:12]} 59. Rg5 {[%emt 0:01:10]} Ra5 {[%emt 0:00:36]} 60. Rg3+ {[%emt 0:00:28]} Kf4 {[%emt 0:00:43]} 61. Rb3 {[%emt 0:00:48]} Ra2 {[%emt 0:00:19]} 62. Rb4+ {[%emt 0:00:12]} Kg5 {[%emt 0:00:14]} 63. Kg3 {[%emt 0:00:08]} Re2 {[%emt 0:00:34]} 64. Kf3 {[%emt 0:00:10]} Rh2 {[%emt 0:00:15]} 65. Ra4 {[%emt 0:00:06]} Rh3+ {[%emt 0:00:09]} 66. Kf2 {[%emt 0:00:05]} Rd3 {[%emt 0:00:07]} 67. Rb4 {[%emt 0:00:12]} Ra3 {[%emt 0:00:03]} 68. Rc4 {[%emt 0:00:04]} Ra2+ {[%emt 0:00:03]} 69. Kf1 {[%emt 0:00:18]} f4 {[%emt 0:00:19]} 70. Rc3 {[%emt 0:00:05]} Kg4 {[%emt 0:00:16]} 71. Rb3 {[%emt 0:00:08]} Ra1+ {[%emt 0:00:37]} 72. Kf2 {[%emt 0:00:05]} Ra4 {[%emt 0:00:27]} 73. Kg2 {[%emt 0:02:00]} f3+ {[%emt 0:01:51]} 74. Rxf3 {[%emt 0:00:19]} Ra2+ {[%emt 0:00:01]} 75. Rf2 {[%emt 0:00:06]} Rxf2+ {[%emt 0:00:02]} 76. Kxf2 {[%emt 0:00:02]} 1/2-1/2

[Event "10th Uppsala Young Champions 2023"]
[Site "Uppsala"]
[Date "2023.11.01"]
[Round "8.3"]
[White "Domalchuk-Jonasson, Aleksandr"]
[Black "Briem, Stephan"]
[Result "1-0"]
[ECO "E01"]
[WhiteElo "2392"]
[BlackElo "2144"]
[Annotator "RC"]
[PlyCount "79"]
[EventDate "2023.10.27"]
[EventType "swiss"]
[EventCountry "SWE"]
[SourceTitle "playchess.com"]
[Source "ChessBase"]
[SourceQuality "1"]
[TimeControl "5400+30"]

1. c4 {[%emt 0:00:08]} e6 {[%emt 0:06:13]} 2. Nf3 {[%emt 0:01:01]} d5 {[%emt 0:01:24]} 3. d4 {[%emt 0:00:26]} c6 {[%emt 0:00:34]} 4. Nbd2 {[%emt 0:00:46]} f5 {[%emt 0:04:36]} 5. g3 {[%emt 0:03:31]} Nf6 {[%emt 0:03:30]} 6. Bg2 {[%emt 0:00:05]} Nbd7 {[%emt 0:00:32]} 7. b3 {[%emt 0:01:21]} Bd6 {[%emt 0:02:16]} 8. Bb2 {[%emt 0:00:09]} Ne4 {[%emt 0:10:04]} 9. O-O {[%emt 0:00:23]} O-O {[%emt 0:04:21]} 10. Qc1 {[%emt 0:05:10]} Qe7 {[%emt 0:03:32]} 11. a4 {[%emt 0:00:50]} a5 {[%emt 0:03:54]} 12. Ne1 {[%emt 0:04:50]} b6 {[%emt 0:03:35]} 13. Nd3 {[%emt 0:06:04]} Bb7 {[%emt 0:01:47]} 14. e3 {[%emt 0:06:34]} c5 {[%emt 0:03:16]} 15. f3 {[%emt 0:03:28]} Nxd2 {[%emt 0:04:13]} 16. Qxd2 {[%emt 0:00:04]} Rac8 {[%emt 0:14:26]} 17. f4 {[%emt 0:01:50]} cxd4 {[%emt 0:05:45]} 18. exd4 {[%emt 0:02:58]} Nf6 {[%emt 0:00:34]} 19. Ne5 {[%emt 0:01:46]} dxc4 {[%emt 0:01:41]} 20. bxc4 {[%emt 0:00:45]} Bxg2 {[%emt 0:01:51]} 21. Qxg2 {[%emt 0:00:24]} Ne4 {[%emt 0:00:12]} 22. Rfc1 {[%emt 0:03:08]} Rfd8 {[%emt 0:02:14]} 23. Qc2 {[%emt 0:03:17]} Qb7 {[%emt 0:04:19]} 24. Rab1 {[%emt 0:02:02]} Bxe5 {[%emt 0:06:18]} 25. fxe5 {[%emt 0:00:05]} Ng5 {[%emt 0:01:35]} 26. Qg2 {[%emt 0:00:34]} Qxg2+ {[%emt 0:03:45]} 27. Kxg2 {[%emt 0:00:04]} Rc6 {[%emt 0:00:20]} 28. d5 {[%emt 0:03:24]} exd5 {[%emt 0:00:24]} 29. cxd5 {[%emt 0:00:03]} Rxc1 {[%emt 0:00:14]} 30. Bxc1 {[%emt 0:00:04]} Ne4 {[%emt 0:02:33]} 31. d6 {[%emt 0:00:39]} Kf7 {[%emt 0:01:18]} 32. Rxb6 {[%emt 0:00:17]} Ke6 {[%emt 0:00:19]} 33. Bb2 {[%emt 0:01:36]} Rc8 {[%emt 0:00:23]} 34. Rb7 {[%emt 0:00:14]} g5 {[%emt 0:04:59]} 35. Re7+ {[%emt 0:05:28]} Kd5 {[%emt 0:00:02]} 36. d7 {[%emt 0:00:11]} Rd8 {[%emt 0:00:09]} 37. e6 {[%emt 0:00:30]} Nc5 {[%emt 0:01:17]} 38. Bf6 {[%emt 0:00:10]} Nxe6 {[%emt 0:00:33]} 39. Rxe6 {[%emt 0:00:08]} Rxd7 {[%emt 0:00:29]} 40. Re5+ {[%emt 0:46:03]} 1-0

[Event "10th Uppsala Young Champions 2023"]
[Site "Uppsala"]
[Date "2023.11.01"]
[Round "8.4"]
[White "Stefansson, Vignir Vatnar"]
[Black "Omarsson, Adam"]
[Result "1-0"]
[ECO "B22"]
[WhiteElo "2484"]
[BlackElo "1946"]
[Annotator "RC"]
[PlyCount "53"]
[EventDate "2023.10.27"]
[EventType "swiss"]
[EventCountry "SWE"]
[SourceTitle "playchess.com"]
[Source "ChessBase"]
[SourceQuality "1"]
[TimeControl "5400+30"]

1. e4 {[%emt 0:06:07]} c5 {[%emt 0:00:03]} 2. c3 {[%emt 0:00:07]} d6 {[%emt 0:00:13]} 3. d4 {[%emt 0:00:54]} cxd4 {[%emt 0:00:10]} 4. cxd4 {[%emt 0:00:06]} Nf6 {[%emt 0:00:19]} 5. Nc3 {[%emt 0:00:06]} e6 {[%emt 0:03:48]} 6. Nf3 {[%emt 0:02:08]} Be7 {[%emt 0:05:06]} 7. Bd3 {[%emt 0:00:50]} O-O {[%emt 0:00:52]} 8. h4 {[%emt 0:12:26]} a6 {[%emt 0:12:32]} 9. e5 {[%emt 0:00:26]} dxe5 {[%emt 0:04:50]} 10. dxe5 {[%emt 0:00:07]} Ng4 {[%emt 0:02:36]} 11. Bxh7+ {[%emt 0:00:25]} Kh8 {[%emt 0:00:05]} 12. Bd3 {[%emt 0:02:37]} Nc6 {[%emt 0:02:29]} 13. Qe2 {[%emt 0:00:19]} Bc5 {[%emt 0:01:30]} 14. Ne4 {[%emt 0:00:35]} Bb4+ {[%emt 0:00:20]} 15. Kf1 {[%emt 0:03:00]} Kg8 {[%emt 0:03:02]} 16. Bf4 {[%emt 0:02:11]} Qa5 {[%emt 0:06:47]} 17. Rh3 {[%emt 0:02:03]} f5 {[%emt 0:08:09]} 18. exf6 {[%emt 0:00:51]} gxf6 {[%emt 0:02:20]} 19. Rg3 {[%emt 0:02:56]} f5 {[%emt 0:01:00]} 20. Bh6 {[%emt 0:04:08]} Rf7 {[%emt 0:01:12]} 21. Nfg5 {[%emt 0:01:24]} Nd4 {[%emt 0:04:01]} 22. Qd1 {[%emt 0:00:40]} Qe5 {[%emt 0:09:05]} 23. Nxf7 {[%emt 0:01:19]} Kxf7 {[%emt 0:02:55]} 24. Rxg4 {[%emt 0:00:07]} fxg4 {[%emt 0:03:27]} 25. Qxg4 {[%emt 0:00:13]} Be7 {[%emt 0:00:25]} 26. Re1 {[%emt 0:00:32]} Qh2 {[%emt 0:00:33]} 27. Qh5+ {[%emt 0:00:07]} 1-0

[Event "10th Uppsala Young Champions 2023"]
[Site "Uppsala"]
[Date "2023.11.01"]
[Round "8.5"]
[White "Seiger, Vidar"]
[Black "Ljung, Harald"]
[Result "1-0"]
[ECO "D78"]
[WhiteElo "1908"]
[BlackElo "2159"]
[Annotator "RC"]
[PlyCount "83"]
[EventDate "2023.10.27"]
[EventType "swiss"]
[EventCountry "SWE"]
[SourceTitle "playchess.com"]
[Source "ChessBase"]
[SourceQuality "1"]
[TimeControl "5400+30"]

1. Nf3 {[%emt 0:02:54]} Nf6 {[%emt 0:00:41]} 2. g3 {[%emt 0:00:07]} g6 {[%emt 0:00:04]} 3. b3 {[%emt 0:00:07]} Bg7 {[%emt 0:00:10]} 4. Bb2 {[%emt 0:00:11]} O-O {[%emt 0:00:11]} 5. Bg2 {[%emt 0:00:08]} d5 {[%emt 0:00:23]} 6. c4 {[%emt 0:00:12]} c6 {[%emt 0:00:06]} 7. O-O {[%emt 0:00:31]} Nbd7 {[%emt 0:01:19]} 8. cxd5 {[%emt 0:03:36]} cxd5 {[%emt 0:00:15]} 9. d4 {[%emt 0:00:04]} Ne4 {[%emt 0:00:55]} 10. Nfd2 {[%emt 0:05:45]} Ndf6 {[%emt 0:04:51]} 11. f3 {[%emt 0:02:38]} Nxd2 {[%emt 0:02:21]} 12. Qxd2 {[%emt 0:00:39]} h5 {[%emt 0:01:06]} 13. Nc3 {[%emt 0:07:09]} Kh7 {[%emt 0:02:14]} 14. e4 {[%emt 0:07:12]} dxe4 {[%emt 0:01:25]} 15. fxe4 {[%emt 0:01:08]} Ng4 {[%emt 0:00:11]} 16. Nd1 {[%emt 0:01:13]} Qb6 {[%emt 0:03:37]} 17. h3 {[%emt 0:05:03]} Nh6 {[%emt 0:04:33]} 18. Ne3 {[%emt 0:01:39]} Be6 {[%emt 0:02:51]} 19. Rad1 {[%emt 0:00:04]} Rad8 {[%emt 1:12:47]} 20. Ba1 {[%emt 0:05:50]} Be5 {[%emt 0:00:00]} 21. d5 {[%emt 0:03:04]} Bxg3 {[%emt 0:00:00]} 22. Bd4 {[%emt 0:00:43]} Qd6 {[%emt 0:00:00]} 23. Nc4 {[%emt 0:02:27]} Qc7 {[%emt 0:00:00]} 24. dxe6 {[%emt 0:00:13]} b5 {[%emt 0:00:00]} 25. Ne3 {[%emt 0:02:17]} fxe6 {[%emt 0:00:00]} 26. Qc3 {[%emt 0:03:52]} Qb8 {[%emt 0:00:00]} 27. Qc5 {[%emt 0:06:31]} Bd6 {[%emt 0:00:00]} 28. Qxa7 {[%emt 0:00:16]} Qc8 {[%emt 0:00:00]} 29. e5 {[%emt 0:01:26]} Rxf1+ {[%emt 0:00:00]} 30. Rxf1 {[%emt 0:00:54]} Bb4 {[%emt 0:00:00]} 31. a4 {[%emt 0:06:53]} bxa4 {[%emt 0:00:00]} 32. bxa4 {[%emt 0:00:05]} Nf5 {[%emt 0:00:00]} 33. Nxf5 {[%emt 0:01:27]} gxf5 {[%emt 0:00:00]} 34. Bf2 {[%emt 0:00:57]} Rg8 {[%emt 0:00:00]} 35. Kh1 {[%emt 0:01:00]} Qe8 {[%emt 0:00:00]} 36. Rg1 {[%emt 0:04:54]} Qc8 {[%emt 0:00:00]} 37. Qd4 {[%emt 0:01:36]} Bc3 {[%emt 0:00:00]} 38. Qh4 {[%emt 0:01:21]} Qe8 {[%emt 0:00:00]} 39. Qc4 {[%emt 0:04:50]} Bxe5 {[%emt 0:00:00]} 40. Qxe6 {[%emt 0:00:10]} Bf6 {[%emt 0:00:00]} 41. Qxf5+ {[%emt 0:00:07]} Kh8 {[%emt 0:00:00]} 42. a5 {[%emt 0:01:02]} 1-0

[Event "10th Uppsala Young Champions 2023"]
[Site "Uppsala"]
[Date "2023.11.01"]
[Round "8.6"]
[White "Mai, Alexander Oliver"]
[Black "Harish, Neeraj"]
[Result "1-0"]
[ECO "D77"]
[WhiteElo "2118"]
[BlackElo "2076"]
[Annotator "RC"]
[PlyCount "71"]
[EventDate "2023.10.27"]
[EventType "swiss"]
[EventCountry "SWE"]
[SourceTitle "playchess.com"]
[Source "ChessBase"]
[SourceQuality "1"]
[TimeControl "5400+30"]

1. Nf3 {[%emt 0:00:13]} Nf6 {[%emt 0:00:12]} 2. g3 {[%emt 0:00:07]} g6 {[%emt 0:00:05]} 3. Bg2 {[%emt 0:00:03]} Bg7 {[%emt 0:00:05]} 4. O-O {[%emt 0:00:05]} O-O {[%emt 0:00:04]} 5. d4 {[%emt 0:00:05]} d5 {[%emt 0:00:18]} 6. c4 {[%emt 0:00:08]} dxc4 {[%emt 0:01:53]} 7. Ne5 {[%emt 0:03:21]} c5 {[%emt 0:01:58]} 8. dxc5 {[%emt 0:00:16]} Qc7 {[%emt 0:01:24]} 9. Nxc4 {[%emt 0:00:35]} Qxc5 {[%emt 0:00:15]} 10. Nba3 {[%emt 0:00:26]} Nc6 {[%emt 0:01:36]} 11. Be3 {[%emt 0:00:14]} Qh5 {[%emt 0:00:33]} 12. h4 {[%emt 0:01:55]} Bg4 {[%emt 0:04:18]} 13. f3 {[%emt 0:00:37]} Be6 {[%emt 0:00:14]} 14. Qe1 {[%emt 0:03:12]} Rad8 {[%emt 0:10:58]} 15. Bg5 {[%emt 0:02:57]} h6 {[%emt 0:03:53]} 16. g4 {[%emt 0:01:05]} Nxg4 {[%emt 0:02:28]} 17. fxg4 {[%emt 0:00:07]} Qxg4 {[%emt 0:00:04]} 18. Rf4 {[%emt 0:01:47]} Qh5 {[%emt 0:03:31]} 19. Bf3 {[%emt 0:00:28]} hxg5 {[%emt 0:00:08]} 20. Bxh5 {[%emt 0:00:05]} gxf4 {[%emt 0:00:04]} 21. Bf3 {[%emt 0:00:19]} Bd4+ {[%emt 0:06:38]} 22. Kg2 {[%emt 0:01:06]} Kg7 {[%emt 0:01:50]} 23. Rd1 {[%emt 0:04:42]} Rh8 {[%emt 0:02:10]} 24. Bxc6 {[%emt 0:17:43]} bxc6 {[%emt 0:03:00]} 25. Rxd4 {[%emt 0:00:06]} Rxd4 {[%emt 0:00:04]} 26. Qc3 {[%emt 0:00:04]} c5 {[%emt 0:06:27]} 27. Nc2 {[%emt 0:01:09]} Rxh4 {[%emt 0:01:11]} 28. Nxd4 {[%emt 0:00:36]} cxd4 {[%emt 0:00:06]} 29. Qxd4+ {[%emt 0:00:43]} Kh7 {[%emt 0:00:29]} 30. Kf2 {[%emt 0:00:25]} g5 {[%emt 0:01:47]} 31. Ne5 {[%emt 0:01:05]} Rh3 {[%emt 0:04:14]} 32. Nf3 {[%emt 0:02:11]} Kg6 {[%emt 0:01:18]} 33. Qe5 {[%emt 0:01:27]} Rh5 {[%emt 0:03:29]} 34. Nd4 {[%emt 0:02:41]} g4 {[%emt 0:04:23]} 35. Qxf4 {[%emt 0:00:31]} Bxa2 {[%emt 0:00:26]} 36. Qxg4+ {[%emt 0:00:37]} 1-0

[Event "10th Uppsala Young Champions 2023"]
[Site "Uppsala"]
[Date "2023.11.01"]
[Round "8.7"]
[White "Grahn, Vidar"]
[Black "Tripathi, Pratyush"]
[Result "1-0"]
[ECO "D12"]
[WhiteElo "2133"]
[BlackElo "1801"]
[Annotator "RC"]
[PlyCount "59"]
[EventDate "2023.10.27"]
[EventType "swiss"]
[EventCountry "SWE"]
[SourceTitle "playchess.com"]
[Source "ChessBase"]
[SourceQuality "1"]
[TimeControl "5400+30"]

1. d4 {[%emt 0:00:02]} d5 {[%emt 0:00:42]} 2. c4 {[%emt 0:00:03]} c6 {[%emt 0:00:05]} 3. Nf3 {[%emt 0:00:04]} Nf6 {[%emt 0:00:03]} 4. e3 {[%emt 0:00:03]} Bf5 {[%emt 0:00:06]} 5. Nc3 {[%emt 0:00:04]} e6 {[%emt 0:00:04]} 6. Nh4 {[%emt 0:00:03]} Bg4 {[%emt 0:00:05]} 7. Qb3 {[%emt 0:00:04]} Qb6 {[%emt 0:00:04]} 8. h3 {[%emt 0:00:06]} Bh5 {[%emt 0:00:05]} 9. g4 {[%emt 0:00:13]} Bg6 {[%emt 0:00:04]} 10. Nxg6 {[%emt 0:00:04]} hxg6 {[%emt 0:00:05]} 11. Bg2 {[%emt 0:00:06]} Be7 {[%emt 0:03:07]} 12. g5 {[%emt 0:04:58]} Nfd7 {[%emt 0:04:17]} 13. f4 {[%emt 0:11:21]} Na6 {[%emt 0:09:22]} 14. Bd2 {[%emt 0:03:35]} Nb4 {[%emt 0:18:28]} 15. Na4 {[%emt 0:07:02]} dxc4 {[%emt 0:03:40]} 16. Nxb6 {[%emt 0:01:04]} cxb3 {[%emt 0:00:09]} 17. Nxa8 {[%emt 0:00:08]} Nc2+ {[%emt 0:00:14]} 18. Ke2 {[%emt 0:00:48]} Nxa1 {[%emt 0:10:55]} 19. Rxa1 {[%emt 0:00:22]} O-O {[%emt 0:00:09]} 20. Nc7 {[%emt 0:00:08]} Rc8 {[%emt 0:00:16]} 21. axb3 {[%emt 0:04:24]} Rxc7 {[%emt 0:04:43]} 22. Rxa7 {[%emt 0:00:14]} Bd6 {[%emt 0:00:06]} 23. b4 {[%emt 0:08:27]} Nb6 {[%emt 0:02:38]} 24. b5 {[%emt 0:02:14]} cxb5 {[%emt 0:00:10]} 25. Rxb7 {[%emt 0:00:10]} Nd5 {[%emt 0:04:30]} 26. Rxb5 {[%emt 0:01:20]} Rc2 {[%emt 0:02:37]} 27. Bxd5 {[%emt 0:01:30]} exd5 {[%emt 0:00:21]} 28. Kd3 {[%emt 0:00:07]} Rc8 {[%emt 0:00:30]} 29. Rxd5 {[%emt 0:00:06]} Bf8 {[%emt 0:00:04]} 30. b4 {[%emt 0:56:40]} 1-0

[Event "10th Uppsala Young Champions 2023"]
[Site "Uppsala"]
[Date "2023.11.01"]
[Round "8.8"]
[White "Morell, Oscar"]
[Black "Morell, Ludvig"]
[Result "1/2-1/2"]
[ECO "B96"]
[WhiteElo "1942"]
[BlackElo "2017"]
[Annotator "RC"]
[PlyCount "55"]
[EventDate "2023.10.27"]
[EventType "swiss"]
[EventCountry "SWE"]
[SourceTitle "playchess.com"]
[Source "ChessBase"]
[SourceQuality "1"]
[TimeControl "5400+30"]

1. e4 {[%emt 0:00:30]} c5 {[%emt 0:00:01]} 2. Nf3 {[%emt 0:00:08]} d6 {[%emt 0:00:03]} 3. d4 {[%emt 0:00:04]} cxd4 {[%emt 0:00:04]} 4. Nxd4 {[%emt 0:00:04]} Nf6 {[%emt 0:00:04]} 5. Nc3 {[%emt 0:00:06]} a6 {[%emt 0:00:02]} 6. Bg5 {[%emt 0:00:09]} e6 {[%emt 0:01:14]} 7. f4 {[%emt 0:00:12]} Nbd7 {[%emt 0:00:22]} 8. Qf3 {[%emt 0:00:10]} Qc7 {[%emt 0:00:06]} 9. O-O-O {[%emt 0:00:08]} b5 {[%emt 0:03:34]} 10. e5 {[%emt 0:00:12]} Bb7 {[%emt 0:03:33]} 11. Qh3 {[%emt 0:00:11]} dxe5 {[%emt 0:07:01]} 12. Nxe6 {[%emt 0:00:16]} fxe6 {[%emt 0:13:16]} 13. Qxe6+ {[%emt 0:00:15]} Be7 {[%emt 0:00:31]} 14. Bxf6 {[%emt 0:00:08]} gxf6 {[%emt 0:04:16]} 15. Bxb5 {[%emt 0:00:20]} axb5 {[%emt 0:10:19]} 16. Nxb5 {[%emt 0:00:03]} Qc6 {[%emt 0:01:50]} 17. Nd6+ {[%emt 0:00:07]} Kd8 {[%emt 0:00:26]} 18. Nxb7+ {[%emt 0:00:07]} Qxb7 {[%emt 0:00:54]} 19. Rxd7+ {[%emt 0:00:07]} Qxd7 {[%emt 0:00:12]} 20. Rd1 {[%emt 0:00:05]} Qxd1+ {[%emt 0:00:16]} 21. Kxd1 {[%emt 0:00:04]} Ke8 {[%emt 0:04:09]} 22. fxe5 {[%emt 0:00:08]} fxe5 {[%emt 0:00:17]} 23. Qc6+ {[%emt 0:00:04]} Kf7 {[%emt 0:00:08]} 24. Qd5+ {[%emt 0:00:06]} Kf6 {[%emt 0:00:34]} 25. Qc6+ {[%emt 0:00:35]} Kf7 {[%emt 0:00:39]} 26. Qd5+ {[%emt 0:00:06]} Kf6 {[%emt 0:00:05]} 27. Qc6+ {[%emt 0:00:04]} Kf7 {[%emt 0:00:11]} 28. Qd5+ {[%emt 0:00:01]} 1/2-1/2